[Event "MPL-4 Indian Chess Tour 2022"]
[Site "Chess24"]
[Date "2022.09.27"]
[Round "7.6"]
[White "Aronyak Ghosh"]
[Black "Narayanan.S.L"]
[Result "1/2-1/2"]
[ECO "D10"]
[WhiteElo "2519"]
[BlackElo "2657"]
[Annotator "TA"]
[PlyCount "86"]
[EventDate "2022.09.29"]
[EventType "tourn (rapid)"]
[EventCountry "NET"]
[SourceTitle "playchess.com"]
[Source "ChessBase"]
[SourceQuality "1"]
[WhiteTeam "India"]
[BlackTeam "India"]
[WhiteTeamCountry "IND"]
[BlackTeamCountry "IND"]
[TimeControl "900+10"]

{[%evp 11,86,21,15,0,0,0,0,0,0,0,0,0,0,-10,0,0,0,0,0,0,0,0,0,0,0,0,0,0,0,0,0,0,0,0,0,0,0,0,0,0,0,0,0,-17,0,0,0,-14,0,0,0,0,0,0,12,0,0,0,0,0,0,0,0,0,0,0,0,0,0,0,0,0,0,0,0,-22,-22]} 1. c4 {[%emt 0:00:00]} c6 {[%emt 0:00:00]} 2. Nc3 {[%emt 0:00:27]} d5 {[%emt 0:00:03]} 3. d4 {[%emt 0:00:02]} Nf6 {[%emt 0:00:02]} 4. cxd5 {[%emt 0:00:07]} cxd5 {[%emt 0:00:03]} 5. Bf4 {[%emt 0:00:02]} Nc6 {[%emt 0:00:09]} 6. e3 {[%emt 0:00:02]} Bg4 {[%emt 0:00:01] The position is equal.} 7. Be2 {[%emt 0:00:51] D10: Slav Defence: 3 cxd5 (without early Nf3) and 3 Nc3.} Bxe2 {[%emt 0:00:06]} 8. Ngxe2 {[%emt 0:01:38]} e6 {[%emt 0:00:02]} 9. O-O {[%emt 0:00:02]} Be7 {[%emt 0:00:03]} 10. Qb3 {[%emt 0:00:09]} Qd7 {[%emt 0:00:19] [#]} 11. Nc1 $146 {[%emt 0:00:29]} ({Predecessor:} 11. Rac1 O-O 12. Bg5 Na5 13. Qa4 Qxa4 14. Nxa4 Rfc8 15. Rxc8+ Rxc8 16. Rc1 Rc4 17. Bxf6 Bxf6 {½-½ (57) Sibashvili,G (2180)-Khegay,D (2327) Budva 2013}) 11... Nh5 {[%emt 0:00:41]} 12. Be5 {[%emt 0:01:27]} O-O {[%emt 0:00:30]} 13. Nd3 {[%emt 0:00:04]} Rfc8 {[%emt 0:00:02]} 14. Rfc1 {[%emt 0:00:29]} f6 {[%emt 0:00:27]} (14... g6 {keeps more tension.} 15. h3 Ng7 16. g4 b6) 15. Bg3 {[%emt 0:00:07]} Nxg3 {[%emt 0:00:01]} 16. hxg3 {[%emt 0:00:01]} Na5 {[%emt 0:00:02]} 17. Qb5 {[%emt 0:00:12]} Qxb5 {[%emt 0:02:02]} 18. Nxb5 {[%emt 0:00:00] Black must now prevent Nc7.} Nc4 {[%emt 0:00:05]} 19. b3 {[%emt 0:00:26]} a6 {[%emt 0:00:02]} 20. Nc3 {[%emt 0:00:50]} Nb6 {[%emt 0:02:13]} 21. a4 {[%emt 0:00:36]} Rc6 {[%emt 0:00:03]} 22. Ne2 {[%emt 0:00:40]} Rac8 {[%emt 0:00:04]} 23. Rxc6 {[%emt 0:00:01]} Rxc6 {[%emt 0:00:02]} 24. Rc1 {[%emt 0:00:01]} Rxc1+ {[%emt 0:00:03]} 25. Nexc1 $11 {[%emt 0:00:04][%cal Be2c1,Bc1a2,Ba2c3][%mdl 4128] Endgame KBN-KNN} Nd7 {[%emt 0:00:10]} 26. Kf1 {[%emt 0:00:37]} Kf7 {[%emt 0:00:03]} 27. Ke2 {[%emt 0:00:08]} e5 {[%emt 0:00:06]} 28. Na2 {[%emt 0:00:22]} Ke6 {[%emt 0:00:15]} 29. Nc3 {[%emt 0:00:06]} h5 {[%emt 0:00:09]} 30. dxe5 {[%emt 0:00:30]} fxe5 {[%emt 0:00:04]} 31. e4 {[%emt 0:00:02]} d4 {[%emt 0:00:22]} 32. Nd5 {[%emt 0:00:03]} Nf6 {[%emt 0:02:07]} 33. Nxf6 {[%emt 0:01:29]} gxf6 {[%emt 0:00:07] KB-KN} 34. f4 {[%emt 0:00:31]} Bd6 {[%emt 0:00:07]} 35. f5+ {[%emt 0:00:45]} Kf7 {[%emt 0:00:02]} 36. Kf3 {[%emt 0:00:04]} Kg7 {[%emt 0:00:01]} 37. g4 {[%emt 0:00:34]} Kh6 {[%emt 0:00:03]} 38. gxh5 {[%emt 0:00:01]} Kxh5 {[%emt 0:00:02]} 39. Nf2 {[%emt 0:00:06]} a5 {[%emt 0:00:39]} 40. Nd3 {[%emt 0:00:16]} b6 {[%emt 0:00:02]} 41. Nb2 {[%emt 0:00:20]} Ba3 {[%emt 0:00:13]} 42. Nd3 {[%emt 0:00:14]} Kg5 {[%emt 0:00:04]} 43. Nf2 {[%emt 0:00:30]} Bc5 {[%emt 0:00:27] Not much happened in this game.  Weighted Error Value: White=0.03 (flawless) /Black=0.02 (flawless)} 1/2-1/2

[Event "MPL-4 Indian Chess Tour 2022"]
[Site "Chess24"]
[Date "2022.09.27"]
[Round "7.7"]
[White "Iniyan, P."]
[Black "Mohammad Nubairshah Shaikh"]
[Result "0-1"]
[ECO "D23"]
[WhiteElo "2556"]
[BlackElo "2461"]
[Annotator "TA"]
[PlyCount "94"]
[EventDate "2022.09.29"]
[EventType "tourn (rapid)"]
[EventCountry "NET"]
[SourceTitle "playchess.com"]
[Source "ChessBase"]
[SourceQuality "1"]
[WhiteTeam "India"]
[BlackTeam "India"]
[WhiteTeamCountry "IND"]
[BlackTeamCountry "IND"]
[TimeControl "900+10"]

{[%evp 10,94,15,0,0,0,0,0,16,0,4,0,14,6,11,3,33,33,34,30,27,27,25,35,63,53,51,63,66,47,56,29,64,0,32,0,0,-16,0,-82,-43,-44,-56,-44,-70,-46,-20,-93,-94,-105,-115,-93,-89,-101,-101,-234,-233,-281,-274,-270,-261,-402,-402,-402,-402,-402,-402,-466,-402,-466,-398,-449,-391,-437,-437,-429,-404,-461,-461,-506,-461,-558,-551,-551,-454,-460,-413]} 1. d4 {[%emt 0:00:00]} d5 {[%emt 0:00:00]} 2. c4 {[%emt 0:00:00]} c6 {[%emt 0:00:04]} 3. Nf3 {[%emt 0:00:01]} Nf6 {[%emt 0:00:02]} 4. Qc2 {[%emt 0:00:00]} dxc4 {[%emt 0:00:09]} 5. Qxc4 {[%emt 0:00:00]} Bg4 {[%emt 0:00:00]} 6. Nbd2 {[%emt 0:00:01]} Nbd7 {[%emt 0:00:14] D23: Queen's Gambit Accepted: 3 Nf3 Nf6 sidelines.} 7. g3 {[%emt 0:00:01]} e6 {[%emt 0:00:02]} 8. Bg2 {[%emt 0:00:01]} Be7 {[%emt 0:00:08] The position is equal.} 9. O-O {[%emt 0:00:01]} O-O {[%emt 0:00:01]} 10. Qb3 {[%emt 0:00:01]} Qb6 {[%emt 0:00:10]} 11. Nc4 {[%emt 0:00:01]} Qa6 {[%emt 0:02:11]} 12. Bf4 {[%emt 0:00:04]} Rfd8 {[%emt 0:00:27]} 13. Bc7 {[%emt 0:00:16] [#] Against Nb6} Rdc8 $146 {[%emt 0:01:53]} ({Predecessor:} 13... Re8 14. Bd6 Rad8 15. Rfe1 Nb6 16. Bxe7 Rxe7 17. Nce5 Bf5 18. e3 Be4 19. Bf1 Qa5 {½-½ (75) Fridman,D (2588)-Karjakin,S (2566) Playchess.com INT 2004}) 14. Bd6 {[%emt 0:00:02]} Bxd6 {[%emt 0:00:10]} 15. Nxd6 {[%emt 0:00:00]} Rc7 {[%emt 0:00:00]} 16. e3 {[%emt 0:03:16]} c5 {[%emt 0:01:39]} 17. Nb5 {[%emt 0:00:03]} Rcc8 {[%emt 0:01:27] aiming for ...c4.} 18. Rfc1 {[%emt 0:00:13]} Rab8 {[%emt 0:01:14]} 19. a4 {[%emt 0:01:46]} cxd4 {[%emt 0:02:16]} 20. Nfxd4 {[%emt 0:01:02]} e5 {[%emt 0:00:33]} 21. Nc2 {[%emt 0:01:23]} (21. Nf3 $14) 21... Be6 {[%emt 0:01:23]} 22. Qa3 {[%emt 0:00:04]} Qb6 {[%emt 0:00:14]} 23. Nd6 {[%emt 0:00:04]} Rc5 {[%emt 0:00:08]} 24. Qd3 {[%emt 0:01:21]} (24. Nb5 $1 $11 {remains equal.}) 24... Qxb2 {[%emt 0:01:31] Threatens to win with ...Bb3.} 25. Rab1 {[%emt 0:02:27]} Qc3 {[%emt 0:00:04]} 26. Qxc3 {[%emt 0:01:52]} Rxc3 {[%emt 0:00:00]} 27. Bxb7 {[%emt 0:00:26]} Nc5 {[%emt 0:01:01]} 28. Nb5 {[%emt 0:01:29] [#]} (28. Bd5 $1 $11 Nb3 29. Bxb3 (29. Bxe6 fxe6 30. Rb2 Rd8 $15) 29... Rbxb3 30. Rxb3 Bxb3 31. Rb1) 28... Rb3 $1 $17 {[%emt 0:00:35] Black has more active pieces.} 29. Rxb3 {[%emt 0:00:50]} Nxb3 {[%emt 0:00:02]} ({Worse is} 29... Bxb3 30. Na1 Nd3 31. Rc3 Bxa4 32. Nd6 $15) 30. Rd1 {[%emt 0:00:01][%cal Ob5a7] [#]} Nc5 $1 {[%emt 0:00:01]} 31. Bf3 {[%emt 0:00:03]} Bb3 $36 {[%emt 0:00:26][%mdl 2048] White is under strong pressure.} 32. Rd2 {[%emt 0:00:13] White does not recover from this.} (32. Nba3 $17) 32... Nce4 $19 {[%emt 0:00:53]} (32... Bxa4 33. Nca3 $17) (32... Nxa4 33. Nxa7 Nc5 34. Nc6 $11) 33. Bxe4 {[%emt 0:00:26]} Nxe4 {[%emt 0:00:00]} 34. Re2 {[%emt 0:00:00]} Bxa4 {[%emt 0:00:16]} 35. Nxa7 {[%emt 0:00:02]} (35. Nba3 $142) 35... Rb7 {[%emt 0:00:47]} 36. f3 {[%emt 0:00:13]} Nf6 {[%emt 0:00:08]} ({And not} 36... Rxa7 37. fxe4 Bc6 38. Ne1 $17) 37. Ne1 {[%emt 0:01:19]} Rxa7 {[%emt 0:00:04]} 38. Ra2 {[%emt 0:00:01]} Ra8 {[%emt 0:00:11]} 39. Nd3 {[%emt 0:00:01]} Nd7 {[%emt 0:00:06]} 40. Nb4 {[%emt 0:00:04]} Kf8 {[%emt 0:00:09][%cal Oe5e4]} 41. f4 {[%emt 0:00:04]} exf4 {[%emt 0:00:10]} 42. exf4 {[%emt 0:00:00]} Nb6 {[%emt 0:00:03]} 43. Rb2 {[%emt 0:00:10]} Bd7 {[%emt 0:00:08] Black is clearly winning.} 44. Nd3 {[%emt 0:00:01]} Nc4 {[%emt 0:00:04]} 45. Re2 {[%emt 0:00:02]} Bg4 {[%emt 0:00:06]} 46. Rc2 {[%emt 0:00:10]} Ra1+ {[%emt 0:00:10]} 47. Kf2 {[%emt 0:00:04] [#]} Rf1+ $3 {[%emt 0:00:07][%mdl 512] Weighted Error Value: White=0.29 (precise) /Black=0.12 (very precise)} 0-1

[Event "MPL-4 Indian Chess Tour 2022"]
[Site "Chess24"]
[Date "2022.09.27"]
[Round "7.8"]
[White "Ganguly, Surya Shekhar"]
[Black "Mendonca, Leon Luke"]
[Result "1/2-1/2"]
[ECO "A00"]
[WhiteElo "2589"]
[BlackElo "2558"]
[Annotator "TA"]
[PlyCount "27"]
[EventDate "2022.09.29"]
[EventType "tourn (rapid)"]
[EventCountry "NET"]
[SourceTitle "playchess.com"]
[Source "ChessBase"]
[SourceQuality "1"]
[WhiteTeam "India"]
[BlackTeam "India"]
[WhiteTeamCountry "IND"]
[BlackTeamCountry "IND"]
[TimeControl "900+10"]

{[%evp 9,27,22,24,20,12,11,9,0,1,0,0,0,0,-24,0,0,0,-17,0,0]} 1. a3 {[%emt 0:00:00]} h6 {[%emt 0:00:00]} 2. e4 {[%emt 0:00:17]} c6 {[%emt 0:00:13]} 3. d4 {[%emt 0:01:27]} d5 {[%emt 0:00:03]} 4. exd5 {[%emt 0:00:00]} cxd5 {[%emt 0:00:02] [#]} 5. Bd3 $146 {[%emt 0:00:01]} ({Predecessor:} 5. Nf3 Nc6 6. Bf4 Bg4 7. Be2 e6 8. c3 Bd6 9. Bxd6 Qxd6 10. O-O Nge7 11. a4 {½-½ (47) Maksimovic,B (2455)-Tari,A (2660) Chess.com INT 2022}) 5... Nc6 {[%emt 0:00:44]} 6. Ne2 {[%emt 0:00:06] A00: Irregular Openings.} Nf6 {[%emt 0:01:06]} 7. O-O {[%emt 0:00:04]} Bg4 {[%emt 0:00:10]} 8. f3 {[%emt 0:00:41]} Bd7 {[%emt 0:00:15]} 9. Qe1 {[%emt 0:01:45]} e6 {[%emt 0:01:12]} 10. Qg3 {[%emt 0:00:02]} Nh5 {[%emt 0:00:32]} 11. Qh3 {[%emt 0:02:02]} Nf6 {[%emt 0:00:11]} 12. Qg3 {[%emt 0:00:36] The position is equal.} Nh5 {[%emt 0:02:24]} 13. Qh3 {[%emt 0:00:02]} Nf6 {[%emt 0:00:18]} 14. Qg3 {[%emt 0:00:43] An uneventful encounter.  Weighted Error Value: White=0.05 (flawless) /Black=0.05 (flawless)} 1/2-1/2

[Event "MPL-4 Indian Chess Tour 2022"]
[Site "Chess24"]
[Date "2022.09.27"]
[Round "8.1"]
[White "Raja Harshit"]
[Black "Mendonca, Leon Luke"]
[Result "1/2-1/2"]
[ECO "B10"]
[WhiteElo "2459"]
[BlackElo "2558"]
[Annotator "TA"]
[PlyCount "72"]
[EventDate "2022.09.29"]
[EventType "tourn (rapid)"]
[EventCountry "NET"]
[SourceTitle "playchess.com"]
[Source "ChessBase"]
[SourceQuality "1"]
[WhiteTeam "India"]
[BlackTeam "India"]
[WhiteTeamCountry "IND"]
[BlackTeamCountry "IND"]
[TimeControl "900+10"]

{[%evp 9,72,19,28,7,7,0,7,6,12,6,12,8,8,-10,0,0,-4,0,0,-4,0,-14,0,-30,-28,-25,0,0,0,-13,-8,-24,0,0,0,0,0,0,-8,-9,0,0,0,-6,0,0,16,12,16,14,17,0,0,0,0,0,0,0,0,0,0,0,0,0,0]} 1. e4 {[%emt 0:00:00]} c6 {[%emt 0:00:00]} 2. Nf3 {[%emt 0:00:05]} d5 {[%emt 0:00:02]} 3. d3 {[%emt 0:00:07]} Qc7 {[%emt 0:00:21]} 4. Nc3 {[%emt 0:00:58]} dxe4 {[%emt 0:00:06]} 5. Nxe4 {[%emt 0:00:03]} Nf6 {[%emt 0:00:45]} 6. Nxf6+ {[%emt 0:01:17] B10: Caro-Kann: 2 d3 and 2 c4.} exf6 {[%emt 0:00:01] [#]} 7. Be3 $146 {[%emt 0:00:02]} ({Predecessor:} 7. g3 Bd6 8. Bg2 O-O 9. O-O Re8 10. Nd2 Be6 11. Ne4 Nd7 12. Re1 Bf8 13. Bf4 {1-0 (63) Vachier Lagrave,M (2784)-Carlsen,M (2862) Chess.com INT 2020}) 7... Bd6 {[%emt 0:00:20]} 8. g3 {[%emt 0:00:03]} O-O {[%emt 0:00:07]} 9. Bg2 {[%emt 0:00:01]} Nd7 {[%emt 0:01:07]} 10. O-O {[%emt 0:00:03]} Ne5 {[%emt 0:00:01]} 11. Nxe5 {[%emt 0:00:16]} fxe5 {[%emt 0:00:04]} 12. Qd2 {[%emt 0:00:12]} Be6 {[%emt 0:01:12]} 13. Qc3 {[%emt 0:00:05]} Rfe8 {[%emt 0:02:25]} 14. Rae1 {[%emt 0:00:08]} Qd7 {[%emt 0:01:05]} 15. f4 {[%emt 0:00:45]} f6 {[%emt 0:00:19]} 16. Be4 {[%emt 0:01:52]} exf4 {[%emt 0:00:36]} (16... Bh3 {is interesting.} 17. Rf2 f5 18. Bg2 exf4 19. Bxf4 Rxe1+ 20. Qxe1 Bxf4 21. Rxf4 Bxg2 22. Kxg2 Re8) 17. Bxf4 {[%emt 0:00:04]} Bxf4 {[%emt 0:00:19]} 18. Rxf4 {[%emt 0:00:05]} Bf7 {[%emt 0:00:20]} 19. Ref1 {[%emt 0:00:36]} Re5 {[%emt 0:00:25]} 20. Bf3 {[%emt 0:01:01]} Rae8 {[%emt 0:00:10]} 21. Qd4 {[%emt 0:00:08] The position is equal.} Qc7 {[%emt 0:00:43]} 22. Qxa7 {[%emt 0:00:24]} Ra5 {[%emt 0:00:09]} 23. Qd4 {[%emt 0:00:03]} Rxa2 {[%emt 0:00:08]} 24. Rg4 {[%emt 0:00:36]} h5 {[%emt 0:01:39]} 25. Re4 {[%emt 0:00:31]} Rxe4 {[%emt 0:01:46]} 26. Bxe4 {[%emt 0:00:07]} Ra8 {[%emt 0:00:14]} 27. Qc5 {[%emt 0:00:11]} Qa5 {[%emt 0:00:46]} 28. b4 {[%emt 0:00:47]} Qxc5+ {[%emt 0:02:05]} 29. bxc5 $11 {[%emt 0:00:00][%mdl 4096] Endgame KRB-KRB} Ra2 {[%emt 0:00:24]} 30. Rb1 {[%emt 0:00:21]} Rxc2 {[%emt 0:00:08]} 31. Rxb7 {[%emt 0:00:02] [#] Threatens to win with Rb8+.} Bd5 {[%emt 0:00:08]} 32. Bg6 {[%emt 0:02:18][%cal Rb7b8]} Kf8 {[%emt 0:00:07]} 33. Rb8+ {[%emt 0:00:17]} Ke7 {[%emt 0:00:01]} 34. Rb7+ {[%emt 0:00:00]} Kf8 {[%emt 0:00:08]} 35. Rb8+ {[%emt 0:00:02]} Ke7 {[%emt 0:00:01]} 36. Rb7+ {[%emt 0:00:01]} Kf8 {[%emt 0:00:15] A balanced but interesting game.  Weighted Error Value: White=0.05 (flawless) /Black=0.05 (flawless)} 1/2-1/2

[Event "MPL-4 Indian Chess Tour 2022"]
[Site "Chess24"]
[Date "2022.09.27"]
[Round "8.2"]
[White "Mohammad Nubairshah Shaikh"]
[Black "Ganguly, Surya Shekhar"]
[Result "0-1"]
[ECO "D27"]
[WhiteElo "2461"]
[BlackElo "2589"]
[Annotator "TA"]
[PlyCount "112"]
[EventDate "2022.09.29"]
[EventType "tourn (rapid)"]
[EventCountry "NET"]
[SourceTitle "playchess.com"]
[Source "ChessBase"]
[SourceQuality "1"]
[WhiteTeam "India"]
[BlackTeam "India"]
[WhiteTeamCountry "IND"]
[BlackTeamCountry "IND"]
[TimeControl "900+10"]

{[%evp 16,112,1,0,2,0,33,14,16,14,15,15,27,0,7,0,0,3,7,-25,-26,-37,0,-81,-82,-86,-49,-53,-50,-53,-58,-64,-56,-62,0,0,0,-42,-43,-54,0,-86,-86,-89,-100,-161,-161,-892,-892,-892,-892,-892,-851,-868,-856,-844,-797,-739,-672,-661,-624,-516,-485,-554,-547,-358,-109,-109,-21,-21,-21,-21,-21,-21,-21,-29973,-29974,-29974,-29975,-29976,-29977,-29976,-29977,-29976,-29978,-29980,-29975,-29975,-29976,-29975,-29976,-29976,-29977,-29982,-29983,-29983,-29984,-29985,-29985]} 1. d4 {[%emt 0:00:00]} d5 {[%emt 0:00:00]} 2. c4 {[%emt 0:00:02]} dxc4 {[%emt 0:00:01]} 3. Nf3 {[%emt 0:00:02]} Nf6 {[%emt 0:00:01]} 4. e3 {[%emt 0:00:02]} e6 {[%emt 0:00:01]} 5. Bxc4 {[%emt 0:00:02]} c5 {[%emt 0:00:00]} 6. O-O {[%emt 0:00:03]} Nc6 {[%emt 0:00:01]} 7. Qe2 {[%emt 0:00:08]} a6 $1 {[%emt 0:00:02][%mdl 4] now scores much better than the old 7...cxd4.} 8. a4 {[%emt 0:00:16]} cxd4 {[%emt 0:00:01]} 9. Rd1 {[%emt 0:00:01][%cal Re3d4]} Bd6 {[%emt 0:00:01] D27: Queen's Gambit Accepted: Classical main line: 7 e4!? and 7 a4.} 10. exd4 {[%emt 0:00:08] aiming for d5.} O-O {[%emt 0:00:01]} 11. Nc3 {[%emt 0:00:07]} h6 {[%emt 0:00:01] The position is equal.} 12. Ne5 {[%emt 0:04:11]} Qc7 {[%emt 0:00:01][%cal Oc6d4]} 13. Bf4 {[%emt 0:00:05]} Rd8 {[%emt 0:00:32] [#]} 14. Rac1 $146 {[%emt 0:00:46]} ({Predecessor:} 14. Nxc6 bxc6 15. Bxd6 Rxd6 16. a5 Bb7 17. b4 Rad8 18. Qe3 Qe7 19. Rab1 R6d7 20. h3 {½-½ (33) Gardner,A (2209)-Reed,A (2094) ICCF email 2018}) 14... Bd7 {[%emt 0:00:00]} 15. Ne4 {[%emt 0:03:10]} Nxe4 {[%emt 0:00:03]} 16. Qxe4 {[%emt 0:00:03]} Be8 {[%emt 0:00:00]} 17. h4 {[%emt 0:01:24]} Qe7 {[%emt 0:00:36]} 18. Bg3 {[%emt 0:02:05]} Rac8 {[%emt 0:01:46]} 19. Bd3 {[%emt 0:00:59]} (19. h5 $11) 19... f5 $17 {[%emt 0:00:05]} 20. Qe3 {[%emt 0:00:02]} Bxe5 {[%emt 0:01:06]} 21. Bxe5 {[%emt 0:01:32]} Qxh4 {[%emt 0:00:03]} 22. Bc4 {[%emt 0:00:05]} Bf7 {[%emt 0:00:02]} 23. Bf4 {[%emt 0:00:22]} Qf6 {[%emt 0:01:39][%cal Rd8d4]} 24. Bb3 {[%emt 0:00:08]} g5 {[%emt 0:01:00]} (24... Rd7 $15) 25. Be5 $11 {[%emt 0:00:06] This bishop pair is nice.} Qg6 {[%emt 0:01:38]} 26. f4 {[%emt 0:01:11]} Nxe5 {[%emt 0:00:44]} 27. dxe5 {[%emt 0:00:35]} Rxc1 {[%emt 0:00:59]} (27... gxf4 $15 28. Qxf4 Rxc1 29. Rxc1 Rd3 30. Rc8+ Kh7) 28. Rxc1 {[%emt 0:00:04]} (28. Qxc1 $11 Rxd1+ 29. Bxd1) 28... gxf4 $17 {[%emt 0:00:12]} 29. Qxf4 {[%emt 0:00:00]} Qg5 $36 {[%emt 0:00:01][%mdl 2048] Keeping White busy.} 30. g3 {[%emt 0:00:17]} (30. Qxg5+ $17 hxg5 31. Rc7) 30... Rd3 $19 {[%emt 0:00:47][%csl LRb3,LRg3]} 31. Rc3 $2 {[%emt 0:00:03]} (31. Rc8+ Kg7 32. Qxg5+ hxg5 33. Rc3) 31... Qxf4 {[%emt 0:00:23]} 32. gxf4 {[%emt 0:00:03]} Rxc3 $1 {[%emt 0:00:01]} 33. bxc3 {[%emt 0:00:01][%mdl 4096] Endgame KB-KB} a5 $1 {[%emt 0:00:01]} 34. Bc4 {[%emt 0:01:46]} Kf8 {[%emt 0:00:06]} 35. Kf2 {[%emt 0:00:02]} Ke7 {[%emt 0:00:01]} 36. Bb5 {[%emt 0:00:30]} Bh5 {[%emt 0:04:01]} 37. Kg3 {[%emt 0:00:27]} Kd8 {[%emt 0:00:04]} 38. Bc4 {[%emt 0:00:24]} Be8 {[%emt 0:00:41]} 39. Bxe6 {[%emt 0:00:06]} Bxa4 {[%emt 0:00:01]} 40. Bxf5 {[%emt 0:00:01] [#]} Bb3 $2 {[%emt 0:00:03]} (40... Ke7 $1 $19 {...Bb3 is the strong threat.} 41. Be4 Bc6) 41. Kh4 $17 {[%emt 0:00:28] [#]} Ke7 {[%emt 0:00:04]} ({Black should try} 41... Bd1 $1 $17 {Hoping for ...a4.} 42. Be4 b6) 42. Kh5 $11 {[%emt 0:00:02]} a4 {[%emt 0:00:04]} 43. Bb1 {[%emt 0:00:11]} Ke6 {[%emt 0:00:11]} 44. Kxh6 {[%emt 0:00:17]} a3 {[%emt 0:00:00] ( -> ...a2)} 45. Kg7 $2 {[%emt 0:00:12][%mdl 8192] This move loses the game for White.} (45. Kg5 $11) 45... a2 {[%emt 0:00:02] Black mates.} 46. Bxa2 {[%emt 0:00:09]} Bxa2 {[%emt 0:00:00] KB-K3P} 47. Kf8 {[%emt 0:00:00]} Kf5 {[%emt 0:01:10]} 48. Ke7 {[%emt 0:00:03]} Kxf4 {[%emt 0:00:01] KB-KPP} 49. Kd6 {[%emt 0:00:04]} Kf5 {[%emt 0:00:01]} 50. Kc7 {[%emt 0:00:21]} Bd5 {[%emt 0:01:10]} 51. c4 {[%emt 0:00:08]} Bc6 {[%emt 0:00:45]} 52. Kd6 {[%emt 0:00:02]} Ke4 {[%emt 0:01:33]} 53. e6 {[%emt 0:00:07]} Kf5 {[%emt 0:00:08]} 54. Ke7 {[%emt 0:00:28]} Ke5 {[%emt 0:00:03]} 55. Kf7 {[%emt 0:00:17]} Kd4 {[%emt 0:00:22]} 56. e7 {[%emt 0:00:21]} Kxc4 {[%emt 0:00:03] Weighted Error Value: White=0.40/Black=0.13 (very precise)} 0-1